Cogmind - Beta 12 --- EXPLORER MODE // 2023.03.25 @ 20:44:46 Player: viper Result: Self-destructed Performance ------------- Evolutions (7) 3500 Regions Visited (16) 3200 Robots Destroyed (363) 1815 Value Destroyed (12864) 12864 Prototype IDs (21) 420 Alien Tech Used (0) 0 Bonus (2807) 2807 TOTAL SCORE: 24606 Bonus ------- High Alert Combat Kills 430 Follower Combat Kills 2340 Entered DSFs 500 Network Hubs Disabled 400 Met R17 at Cetus 500 Friendly Fire -1363 Cogmind --------- Core Integrity 951/1300 Matter 362/700 Energy 85/315 System Corruption 4% Temperature Cool (20) Movement Walking (120) Location -3/DSF Parts ------- > --- POWER (3) -------- Neutrino Core > --- PROPULSION (6) --- Centrium Leg Centrium Leg Centrium Leg Centrium Leg Centrium Leg > --- UTILITY (8) ------ Advanced Coolant Injector Huge Storage Unit Advanced Matter Compressor > --- WEAPON (5) ------- Advanced Assault Cannon Hypervelocity Gauss Cannon > --- INVENTORY (25) --- Enhanced Biometal Leg Improved Light Cannon Improved Light Cannon Magnetic Acceleration Cannon Magnetic Acceleration Cannon Bore Cannon Mass Driver Linear Accelerator Peak State ------------ > --- POWER ------------ Improved Deuterium Engine Light Antimatter Reactor Light Particle Reactor > --- PROPULSION ------- Enhanced Biometal Leg Enhanced Biometal Leg Centrium Leg Centrium Leg Centrium Leg Centrium Leg > --- UTILITY ---------- Advanced Heat Sink Advanced Coolant Injector Huge Storage Unit Improved Matter Compressor Advanced Matter Compressor Targeting Computer Advanced Targeting Computer Advanced System Shield > --- WEAPON ----------- KE Penetrator KE Penetrator KE Penetrator KE Penetrator Railgun > --- INVENTORY -------- Light Nuclear Core Improved Deuterium Engine Reinforced Deuterium Engine Light Angular Momentum Engine Neutrino Core Myomer Leg Matter Filter System Restoration Module Heavy Battle Rifle Heavy Battle Rifle Heavy Battle Rifle Heavy Battle Rifle KE Penetrator Improved Light Cannon Improved Light Cannon Advanced Assault Cannon Magnetic Acceleration Cannon Magnetic Acceleration Cannon Bore Cannon Bore Cannon Bore Cannon Bore Cannon Mass Driver Hypervelocity Gauss Cannon Linear Accelerator [Rating: 153] Favorites ----------- Power Improved Deuterium Engine Engine Improved Deuterium Engine Power Core Enhanced Nuclear Core Reactor Light Antimatter Reactor Propulsion Carbon-fiber Leg Leg Carbon-fiber Leg Utility Targeting Computer Device Improved Cooling System Storage High-capacity Storage Unit Processor Targeting Computer Hackware Advanced System Shield Protection Propulsion Shielding Weapon Precision Assault Rifle Energy Gun Medium Laser Ballistic Gun Precision Assault Rifle Ballistic Cannon Magnetic Acceleration Cannon Build | -11 -10 -9 -8 -8 -7 -6 -6 -6 -6 -6 -5 -5 -5 -4 -3 -3 ------- Run | Jun Mat Mat Mat Sto Fac Fac Ext Cet Arc Hub Fac Was Fac Fac Res DSF Slots Evolved 15 | . 1 2 2 . 2 2 . . . . 2 . . 2 2 . Power 2 | . 1 . . . . . . . . . 1 . . . . . Propulsion 4 | . . 2 . . . . . . . . . . . . 2 . Utility 6 | . . . 1 . 2 . . . . . 1 . . 2 . . Weapon 3 | . . . 1 . . 2 . . . . . . . . . . Parts Attached 221 | 7 4 15 9 6 45 8 7 10 . 34 16 7 8 16 2 27 Power 40 | 1 1 3 1 1 9 1 2 1 . 3 6 1 . 4 . 6 Engine 31 | 1 1 3 1 1 8 1 2 1 . 3 3 1 . 2 . 3 Core 7 | . . . . . 1 . . . . . 3 . . 1 . 2 Reactor 2 | . . . . . . . . . . . . . . 1 . 1 Propulsion 67 | 2 2 6 4 1 15 2 4 2 . 10 4 4 . 1 2 8 Treads . | . . . . . . . . . . . . . . . . . Leg 67 | 2 2 6 4 1 15 2 4 2 . 10 4 4 . 1 2 8 Wheel . | . . . . . . . . . . . . . . . . . Hover . | . . . . . . . . . . . . . . . . . Flight . | . . . . . . . . . . . . . . . . . Utility 50 | 2 1 1 1 . 10 2 1 5 . 11 1 1 3 9 . 2 Device 25 | . . . . . 3 . . 1 . 8 1 1 2 7 . 2 Storage 14 | 1 1 1 1 . 2 1 . 3 . 2 . . 1 1 . . Processor 8 | 1 . . . . 4 1 1 . . 1 . . . . . . Hackware 1 | . . . . . . . . . . . . . . 1 . . Protection 2 | . . . . . 1 . . 1 . . . . . . . . Artifact . | . . . . . . . . . . . . . . . . . Weapon 64 | 2 . 5 3 4 11 3 . 2 . 10 5 1 5 2 . 11 Energy Gun 2 | 2 . . . . . . . . . . . . . . . . Energy Cannon . | . . . . . . . . . . . . . . . . . Ballistic Gun 43 | . . 5 3 2 11 3 . 2 . 4 1 . 4 2 . 6 Ballistic Cannon 19 | . . . . 2 . . . . . 6 4 1 1 . . 5 Launcher . | . . . . . . . . . . . . . . . . . Special Weapon . | . . . . . . . . . . . . . . . . . Impact Weapon . | . . . . . . . . . . . . . . . . . Slashing Weapon . | . . . . . . . . . . . . . . . . . Piercing Weapon . | . . . . . . . . . . . . . . . . . Special Melee Weapon . | . . . . . . . . . . . . . . . . . Unidentified Prototypes 17 | . . 2 . 1 2 . . 5 . 4 1 . 1 1 . . Parts Lost 67 | . . 1 1 . 16 2 . 1 . 17 2 1 . 1 . 25 Power 14 | . . . . . 4 . . . . 3 . . . . . 7 Propulsion 13 | . . . . . 6 . . . . 5 1 . . . . 1 Utility 14 | . . . . . 4 1 . . . 1 . 1 . 1 . 6 Weapon 26 | . . 1 1 . 2 1 . 1 . 8 1 . . . . 11 Highest Loss Streak 13 | . . 1 1 . 9 1 . 1 . 3 1 1 . 1 . 13 To Critical Strikes 3 | . . . . . . . . 1 . . . . . . . 2 Average Slot Usage (%) 98 | . 100 99 98 98 98 99 99 99 100 97 99 99 100 99 100 89 Engine 11 | . 25 19 16 15 8 12 11 12 12 10 11 11 11 7 4 5 Core 2 | . . . . . 5 . . . . . 4 5 5 4 4 1 Leg 25 | . 25 40 32 33 27 25 25 25 25 24 21 21 22 20 27 24 Device 5 | . . . . . 5 . . 1 6 5 11 10 11 12 9 8 Storage 10 | . 12 10 16 16 12 5 6 6 12 12 11 11 11 12 13 12 Processor 15 | . 12 10 8 8 16 24 25 22 12 12 11 11 11 10 9 7 Ballistic Gun 19 | . . 16 24 17 19 30 31 30 31 20 . 5 10 25 22 16 Ballistic Cannon 5 | . . . . 6 1 . . . . 10 26 22 16 . . 3 Naked Turns . | . . . . . . . . . . . . . . . . . Heaviest Build 158 | 17 30 41 48 50 76 84 86 96 96 144 158 158 158 149 141 151 Greatest Support 180 | 20 20 60 62 59 67 71 71 81 81 108 103 106 106 113 137 180 Greatest Overweight (x) 9 | . 9 2 1 . 1 1 1 1 1 2 4 3 1 1 1 1 Average Overweight (x) . | . 1 . . . . 1 1 1 1 1 1 1 1 1 1 . Largest Inventory Capacity 25 | 10 15 15 15 15 20 20 20 20 20 25 25 25 25 25 25 25 Average Capacity 21 | 9 14 15 15 15 19 19 20 20 20 24 25 25 25 25 25 25 Most Carried 25 | 4 9 15 15 15 20 13 20 20 18 22 11 19 24 25 23 25 Average Carried 16 | 1 3 10 14 14 16 10 18 18 18 17 10 15 20 22 22 19 Final Capacity 25 | 10 15 15 15 15 20 20 20 20 20 25 25 25 25 25 25 25 Final Carried 24 | 4 9 15 15 15 10 12 20 18 18 12 11 18 23 24 22 8 Class Distribution -------------------- 51% | Scavenger-Gunner 39% | Hacker-Gunner 8% | Hacker-Mutant Dominant Class ---------------- Hacker-Mutant | -10/Materials Hacker-Mutant | -9/Materials Hacker-Gunner | -8/Materials Hacker-Gunner | -8/Storage Hacker-Gunner | -7/Factory Scavenger-Gunner | -6/Factory Scavenger-Gunner | -6/Extension Scavenger-Gunner | -6/Cetus Scavenger-Gunner | -6/Archives Scavenger-Gunner | -6/Hub_04(d) Scavenger-Gunner | -5/Factory Hacker-Gunner | -5/Waste Hacker-Gunner | -5/Factory Scavenger-Gunner | -4/Factory Scavenger-Gunner | -3/Research Scavenger-Gunner | -3/DSF Resources | -11 -10 -9 -8 -8 -7 -6 -6 -6 -6 -6 -5 -5 -5 -4 -3 -3 ----------- Run | Jun Mat Mat Mat Sto Fac Fac Ext Cet Arc Hub Fac Was Fac Fac Res DSF Matter Collected 11810 | 183 107 578 544 394 2634 979 721 360 36 2920 334 685 516 760 20 39 Remotely . | . . . . . . . . . . . . . . . . . Salvage Created 18630 | . 301 1252 1453 768 4577 1832 1137 531 114 3141 161 1178 544 1258 . 383 Parts 864 | . 17 103 75 51 222 79 59 24 4 137 7 3 29 51 . 3 Haulers Intercepted 17 | . 2 5 1 1 4 . 2 . . 1 . . . 1 . . Recyclers Shooed 14 | . 2 . . . 5 5 1 . . . . . . 1 . . Parts Field Recycled . | . . . . . . . . . . . . . . . . . Retrieved Matter . | . . . . . . . . . . . . . . . . . Parts Self-Destructed . | . . . . . . . . . . . . . . . . . Prevented . | . . . . . . . . . . . . . . . . . Kills | -11 -10 -9 -8 -8 -7 -6 -6 -6 -6 -6 -5 -5 -5 -4 -3 -3 ------- Run | Jun Mat Mat Mat Sto Fac Fac Ext Cet Arc Hub Fac Was Fac Fac Res DSF Combat Hostiles Destroyed 266 | . 3 27 18 16 46 21 13 10 1 55 4 6 9 9 . 28 Guns 220 | . 3 27 18 8 46 21 13 10 1 37 . 2 5 9 . 20 Cannons 45 | . . . . 8 . . . . . 18 4 4 3 . . 8 AOE 1 | . . . . . . . . . . . . . 1 . . . Classes Destroyed 22 | . 3 4 3 . 5 2 1 . . 1 . 1 1 . . 1 Worker 30 | . . . 1 . 15 3 . . . 5 1 . 3 2 . . Builder 19 | . . 1 4 . 11 2 . . . 1 . . . . . . Tunneler 3 | . . . . . 2 1 . . . . . . . . . . Hauler 17 | . 2 5 1 1 4 . 2 . . 1 . . . 1 . . Recycler 29 | . . . 4 1 16 3 1 . . . . . 1 3 . . Mechanic 1 | . . . . . . . . . . . . . 1 . . . Operator 6 | . . 1 . 1 2 . . . 1 . 1 . . . . . Watcher 23 | . 3 1 2 . 7 2 1 . . 5 . . . 2 . . Swarmer 28 | . . 9 . 2 6 2 3 2 . . . . . 4 . . Grunt 108 | . 3 10 13 8 19 10 4 5 . 34 . . 2 . . . Brawler 3 | . . . . . . 1 . 1 . 1 . . . . . . Duelist 2 | . . . . . . 1 . . . . . . . . . 1 Protector 1 | . . . . . . . . . . 1 . . . . . . Sentry 47 | . . 8 3 6 5 4 4 . 1 8 2 . 2 4 . . Demolisher 5 | . . . . . 1 . . . . . . . . . . 4 Specialist 4 | . . . . . 4 . . . . . . . . . . . Hunter 14 | . . . 2 . 3 2 1 . . 1 2 . 3 . . . Programmer 16 | . . . . . 6 1 . . . 6 . . 2 1 . . Heavy 2 | . . . . . 2 . . . . . . . . . . . Behemoth 2 | . . . . . . . 1 . . 1 . . . . . . Compactor 6 | . . . . . . . . . . . . 6 . . . . Cetus Guard 2 | . . . . . . . . 2 . . . . . . . . Lightning 3 | . . . . . . . . . . 3 . . . . . . Assembled 23 | . . . . . . . . . . . . . . . . 23 Wasp 2 | . . . . . . . . . . . . . 2 . . . Thug 1 | . . . . . . . . . . . . . . 1 . . Butcher 2 | . . . . . . . . . . . . . . 2 . . Best Kill Streak 25 | . 3 6 16 4 25 6 4 2 1 5 1 4 6 8 . 18 Combat Bots Only 18 | . 2 5 7 4 11 4 3 2 1 4 1 4 3 4 . 18 Max Kills in Single Turn 6 | . 1 2 2 2 2 2 2 2 1 2 1 1 6 4 . 3 Gunslinging 2 | . . 1 1 . . 1 1 1 . . . . 1 2 . 1 Exploded 1 | . . . . . . . . . . . . . 1 . . . Melee . | . . . . . . . . . . . . . . . . . Uniques/NPCs Destroyed . | . . . . . . . . . . . . . . . . . Combat | -11 -10 -9 -8 -8 -7 -6 -6 -6 -6 -6 -5 -5 -5 -4 -3 -3 -------- Run | Jun Mat Mat Mat Sto Fac Fac Ext Cet Arc Hub Fac Was Fac Fac Res DSF Damage Taken 13056 | . 21 772 452 251 2388 596 334 241 112 2679 224 314 392 289 . 3991 Core 1565 | . . 130 44 19 266 36 17 12 18 350 23 290 11 . . 349 Absorbed by Shields 97 | . . . . . . . 74 23 . . . . . . . . Redirected to Shielding 53 | . . . . . 53 . . . . . . . . . . . Regen/Repaired (Parts) 1482 | . . 52 51 118 333 302 . . . . . 208 158 214 . 46 Core Remaining (%) 79 | 100 100 67 . 88 62 . . . . 49 . . 67 100 . . Volleys Fired 706 | . 17 89 51 33 193 47 33 16 6 120 11 18 21 20 . 31 Largest 5 | . 2 2 3 3 3 5 5 5 5 5 5 5 5 5 . 5 Hottest 248 | . 90 90 69 103 103 135 130 132 144 209 240 240 248 165 . 237 Shots Fired 2555 | . 34 168 153 98 556 232 164 74 30 570 54 81 103 100 . 138 Gun 2130 | . 34 168 153 68 544 232 164 74 30 379 2 18 61 100 . 103 Cannon 425 | . . . . 30 12 . . . . 191 52 63 42 . . 35 Launcher . | . . . . . . . . . . . . . . . . . Special . | . . . . . . . . . . . . . . . . . Kinetic 2495 | . . 142 153 98 556 232 164 74 30 570 54 81 103 100 . 138 Thermal 25 | . 17 8 . . . . . . . . . . . . . . Explosive . | . . . . . . . . . . . . . . . . . Electromagnetic 35 | . 17 18 . . . . . . . . . . . . . . Robot Hit Streak 65 | . 16 40 23 36 46 65 24 28 29 59 25 62 19 25 . 18 Robot Miss Streak 3 | . 1 2 2 2 1 1 2 1 . 3 1 1 2 1 . 3 Penetration Max 2 | . . . . . 1 . . . . 2 . 1 1 1 . 2 Secondary Targets 42 | . . 6 2 2 10 4 4 3 . 1 . . 1 3 . 6 Max Gunslinging Chain 3 | . . 1 1 1 1 1 1 1 . 1 . . 1 3 . 1 Shots Hit Robots 1959 | . 30 145 123 69 455 183 129 60 25 417 37 69 55 65 . 97 Core Hits 825 | . 14 61 61 32 166 79 55 24 7 178 15 19 25 36 . 53 Critical Kills 17 | . . . . . . . 2 1 . 5 . . . 1 . 8 Critical Parts Destroyed 30 | . . . 3 . 4 1 . . 2 7 . 1 . 1 . 11 Critical Strikes 73 | . . . 3 . 4 1 2 1 2 32 1 1 3 2 . 21 Destroy 50 | . . . 3 . 4 1 2 1 2 14 . 1 . 2 . 20 Blast 23 | . . . . . . . . . . 18 1 . 3 . . 1 Melee Attacks . | . . . . . . . . . . . . . . . . . Impact . | . . . . . . . . . . . . . . . . . Slashing . | . . . . . . . . . . . . . . . . . Piercing . | . . . . . . . . . . . . . . . . . Sneak Attacks . | . . . . . . . . . . . . . . . . . Combat Hostiles . | . . . . . . . . . . . . . . . . . Follow-up Attacks . | . . . . . . . . . . . . . . . . . Damage Inflicted 41927 | . 436 1711 1831 1192 9081 3435 2345 996 492 10017 844 2065 2742 1874 . 2866 Guns 33381 | . 402 1711 1831 775 8886 3430 2277 996 492 6848 45 429 965 1874 . 2420 Cannons 6863 | . . . . 413 152 . . . . 3096 799 1636 343 . . 424 Explosions 1464 | . 34 . . . . . . . . 2 . . 1428 . . . Melee . | . . . . . . . . . . . . . . . . . Ramming 219 | . . . . 4 43 5 68 . . 71 . . 6 . . 22 Kinetic 39588 | . . 1457 1831 1188 9038 3430 2277 996 492 9944 844 2065 1308 1874 . 2844 Thermal 1708 | . 232 48 . . . . . . . . . . 1428 . . . Explosive . | . . . . . . . . . . . . . . . . . Electromagnetic 412 | . 204 206 . . . . . . . 2 . . . . . . Impact . | . . . . . . . . . . . . . . . . . Slashing . | . . . . . . . . . . . . . . . . . Piercing . | . . . . . . . . . . . . . . . . . Highest Corruption 11 | . . . . . 2 . . . . 11 . . . 1 . 4 Average Corruption 3 | . . . . . 1 . . . . 4 . . . 1 . 2 Corruption Purged 9 | . . . . . . . . . . 7 . . . 1 . 1 Corruption Blocked . | . . . . . . . . . . . . . . . . . Effects 98 | . . . . . 35 . . . . 54 . . . 6 . 3 Message Errors 16 | . . . . . 5 . . . . 9 . . . 2 . . Matter Fused 27 | . . . . . 11 . . . . 14 . . . 1 . 1 Heat Flow Errors 12 | . . . . . 4 . . . . 7 . . . 1 . . Energy Discharges 16 | . . . . . 5 . . . . 9 . . . 1 . 1 Parts Rejected 3 | . . . . . 2 . . . . . . . . . . 1 Data Loss (minor) 10 | . . . . . 2 . . . . 8 . . . . . . Data Loss (major) 4 | . . . . . 1 . . . . 2 . . . 1 . . Misfires 3 | . . . . . 2 . . . . 1 . . . . . . Alerts 2 | . . . . . 2 . . . . . . . . . . . Weapon Failures 5 | . . . . . 1 . . . . 4 . . . . . . Overload Shots . | . . . . . . . . . . . . . . . . . Overflow Damage 175 | . . . . . . . . . . 19 2 . 154 . . . Projectiles 21 | . . . . . . . . . . 19 2 . . . . . Explosions 154 | . . . . . . . . . . . . . 154 . . . Melee . | . . . . . . . . . . . . . . . . . Knockbacks 48 | . . . . 1 1 . 2 . . 33 2 . . . . 9 Impact 3 | . . . . . . . 2 . . 1 . . . . . . Kinetic 45 | . . . . 1 1 . . . . 32 2 . . . . 9 Secondary . | . . . . . . . . . . . . . . . . . Self-Inflicted Damage 136 | . . . . . . . . . . 136 . . . . . . Shots 2 | . . . . . . . . . . 2 . . . . . . Rammed . | . . . . . . . . . . . . . . . . . Targets Rammed 26 | . . . . 1 5 1 7 . . 9 . . 1 . . 2 Kicked 26 | . . . . 1 5 1 7 . . 9 . . 1 . . 2 Crushed . | . . . . . . . . . . . . . . . . . Highest Temperature 769 | . 225 382 71 294 521 490 318 305 12 665 309 769 358 190 . 199 Average Temperature 118 | . 79 83 15 72 108 174 108 90 5 125 106 306 151 74 . 92 Received Heat Transfer 3590 | . 18 489 300 162 702 261 97 90 . 843 27 . 63 54 . 484 Effects 117 | . . 1 . . 15 7 5 . . 33 . 43 13 . . . Shutdowns 32 | . . . . . 4 2 1 . . 7 . 15 3 . . . Energy Bleed 15 | . . . . . 1 1 2 . . 6 . 5 . . . . Interference 40 | . . . . . 3 4 2 . . 13 . 11 7 . . . Matter Decay 6 | . . . . . 1 . . . . 3 . 2 . . . . Short Circuit 6 | . . . . . . . . . . 2 . 2 2 . . . Damage (minor) 6 | . . 1 . . . . . . . 2 . 2 1 . . . Damage (major) 10 | . . . . . 6 . . . . . . 4 . . . . Damage (core) 2 | . . . . . . . . . . . . 2 . . . . Siege Activations . | . . . . . . . . . . . . . . . . . Robots Corrupted . | . . . . . . . . . . . . . . . . . Combat Hostiles . | . . . . . . . . . . . . . . . . . Parts Fried 1 | . . . . . . . . . . . . . . 1 . . Impact Corruptions . | . . . . . . . . . . . . . . . . . Robots Melted . | . . . . . . . . . . . . . . . . . Combat Hostiles . | . . . . . . . . . . . . . . . . . Parts Melted . | . . . . . . . . . . . . . . . . . Heat Transferred 1790 | . 692 148 . . . . . . . . . . 950 . . . Parts Sabotaged . | . . . . . . . . . . . . . . . . . Parts Stolen . | . . . . . . . . . . . . . . . . . Parts Stripped . | . . . . . . . . . . . . . . . . . Power Chain Reactions 1 | . 1 . . . . . . . . . . . . . . . Missiles Intercepted . | . . . . . . . . . . . . . . . . . Alert | -11 -10 -9 -8 -8 -7 -6 -6 -6 -6 -6 -5 -5 -5 -4 -3 -3 ------- Run | Jun Mat Mat Mat Sto Fac Fac Ext Cet Arc Hub Fac Was Fac Fac Res DSF Peak Influence 695 | . 145 426 695 427 597 326 257 386 187 308 103 11 684 477 107 102 Initial 172 | . . 43 96 119 103 9 117 . 67 44 . 9 . 172 104 62 Average 136 | . 84 223 359 248 112 105 86 194 163 106 27 1 329 191 104 60 Maximum Alert Level 2 | . . 2 2 2 2 1 1 1 . 1 . . 2 2 . . Low Security (%) 75 | 100 100 43 27 28 80 77 92 46 100 85 100 100 36 61 100 100 Level 1 19 | . . 51 35 69 15 22 7 53 . 14 . . 22 36 . . Level 2 5 | . . 4 37 1 4 . . . . . . . 40 2 . . Level 3 . | . . . . . . . . . . . . . . . . . Level 4 . | . . . . . . . . . . . . . . . . . Level 5 . | . . . . . . . . . . . . . . . . . High Security . | . . . . . . . . . . . . . . . . . Max Security . | . . . . . . . . . . . . . . . . . Squads Dispatched 81 | . . 4 3 3 21 11 4 2 . 20 2 . 8 2 . 1 Investigation 36 | . . 2 3 3 8 3 4 2 . 8 1 . 2 . . . Extermination 17 | . . . . . 5 1 . . . 6 1 . 2 2 . . Reinforcement 17 | . . 2 . . 7 1 . . . 3 . . 3 . . 1 Assault . | . . . . . . . . . . . . . . . . . Garrison 11 | . . . . . 1 6 . . . 3 . . 1 . . . Intercept . | . . . . . . . . . . . . . . . . . Searches Triggered . | . . . . . . . . . . . . . . . . . Construction Impeded 3 | . . . . . . . . . . 2 . . 1 . . . Haulers Reinforced 2 | . . . . . 1 . . . . . . . 1 . . . Active Scanning Responses . | . . . . . . . . . . . . . . . . . Cargo Convoy Interrupts 1 | . . . . . 1 . . . . . . . . . . . Stealth | -11 -10 -9 -8 -8 -7 -6 -6 -6 -6 -6 -5 -5 -5 -4 -3 -3 --------- Run | Jun Mat Mat Mat Sto Fac Fac Ext Cet Arc Hub Fac Was Fac Fac Res DSF Distress Signals 13 | . 1 . 2 . 1 . 1 2 . 4 . . 2 . . . Communications Jammed . | . . . . . . . . . . . . . . . . . Distress Signals . | . . . . . . . . . . . . . . . . . Times Spotted 412 | . 7 31 22 17 61 23 27 23 4 70 5 7 21 15 . 79 Peak Tracking Total 32 | . 3 4 5 3 9 3 4 7 2 5 3 4 3 4 . 32 Tactical Retreats 5 | . . . . . . 1 . . . 2 . 1 . . . 1 Traps | -11 -10 -9 -8 -8 -7 -6 -6 -6 -6 -6 -5 -5 -5 -4 -3 -3 ------- Run | Jun Mat Mat Mat Sto Fac Fac Ext Cet Arc Hub Fac Was Fac Fac Res DSF Traps Triggered 18 | . . 2 . 2 4 3 3 . . . 3 . . . . 1 Indirectly . | . . . . . . . . . . . . . . . . . Trap Hack Attempts . | . . . . . . . . . . . . . . . . . Triggered . | . . . . . . . . . . . . . . . . . Disarmed . | . . . . . . . . . . . . . . . . . Reprogrammed 20 | . . 3 6 7 . . 4 . . . . . . . . . Reused . | . . . . . . . . . . . . . . . . . Traps Extracted . | . . . . . . . . . . . . . . . . . Installed . | . . . . . . . . . . . . . . . . . Triggered 2 | . . . . . 2 . . . . . . . . . . . Machines | -11 -10 -9 -8 -8 -7 -6 -6 -6 -6 -6 -5 -5 -5 -4 -3 -3 ---------- Run | Jun Mat Mat Mat Sto Fac Fac Ext Cet Arc Hub Fac Was Fac Fac Res DSF Machines Disabled 32 | . . 1 1 1 3 . 2 4 . 13 . . 7 . . . Max in Single Turn 4 | . . 1 1 1 3 . 1 . . 2 . . 4 . . . Garrison Access 5 | . . . . 1 2 . . . . 1 . . 1 . . . Network Hub 2 | . . . . . . . . . . 2 . . . . . . Machines Repaired . | . . . . . . . . . . . . . . . . . Machines Sabotaged . | . . . . . . . . . . . . . . . . . Overloaded Fab Kills . | . . . . . . . . . . . . . . . . . Hacking | -11 -10 -9 -8 -8 -7 -6 -6 -6 -6 -6 -5 -5 -5 -4 -3 -3 --------- Run | Jun Mat Mat Mat Sto Fac Fac Ext Cet Arc Hub Fac Was Fac Fac Res DSF Machines Accessed 78 | . 1 8 3 8 14 5 11 3 1 13 2 . 6 2 1 . Terminals 57 | . 1 4 2 6 8 2 11 3 . 12 2 . 5 . 1 . Fabricators 2 | . . . . . 1 . . . . . . . . 1 . . Repair Stations 10 | . . 2 1 1 3 2 . . . . . . . 1 . . Recycling Units 1 | . . 1 . . . . . . . . . . . . . . Scanalyzers 1 | . . 1 . . . . . . . . . . . . . . Garrison Access 6 | . . . . 1 2 1 . . . 1 . . 1 . . . Total Hacks 271 | . 1 29 9 23 38 16 23 7 25 42 10 . 41 6 1 . Successful 165 | . 1 19 8 17 21 8 11 7 25 18 6 . 17 6 1 . Failed 106 | . . 10 1 6 17 8 12 . . 24 4 . 24 . . . Catastrophic 22 | . . 2 . 2 4 1 1 . . 5 3 . 4 . . . Database Lockouts . | . . . . . . . . . . . . . . . . . Manual 5 | . . . . . . . . 2 3 . . . . . . . Terminals 181 | . 1 13 6 17 20 6 23 7 . 40 10 . 37 . 1 . Fabricators 4 | . . . . . 2 . . . . . . . . 2 . . Repair Stations 38 | . . 6 3 5 12 8 . . . . . . . 4 . . Recycling Units 8 | . . 8 . . . . . . . . . . . . . . Scanalyzers 2 | . . 2 . . . . . . . . . . . . . . Garrison Access 13 | . . . . 1 4 2 . . . 2 . . 4 . . . Terminal Hacks 119 | . 1 6 5 12 8 4 11 7 25 17 6 . 16 . 1 . Record 47 | . . . . 2 . . . 6 25 6 3 . 5 . . . Part Schematic 4 | . . . . 1 1 . . . . . . . 2 . . . Robot Schematic 2 | . . . . . . . . . . 2 . . . . . . Robot Analysis 1 | . . 1 . . . . . . . . . . . . . . Prototype ID Bank 3 | . . . 1 . . . . . . . 1 . 1 . . . Open Door 10 | . . . . 1 . . 8 1 . . . . . . . . Open DSF 1 | . . . . . . . . . . . . . . . 1 . Level Access Points 2 | . . . . . . 1 . . . . . . 1 . . . Branch Access Points 5 | . . 1 1 . 1 1 . . . 1 . . . . . . Emergency Access Points 1 | . . . . . . . . . . 1 . . . . . . Terminal Index 1 | . . . . . . . . . . 1 . . . . . . Fabricator Index 2 | . . . . . 1 . . . . 1 . . . . . . Locate Traps 12 | . . 2 1 3 2 . 1 . . 2 . . 1 . . . Reprogram Traps 5 | . . 1 1 2 . . 1 . . . . . . . . . Dispatch Records 1 | . . . . . 1 . . . . . . . . . . . Security Status 1 | . . . . . . . . . . . . . 1 . . . Surveillance Status 2 | . . 1 . . . . . . . . 1 . . . . . Patrol Status 1 | . . . 1 . . . . . . . . . . . . . Assault Status 2 | . . . . . . . . . . . . . 2 . . . Recall Assault 1 | . . . . . . . . . . . . . 1 . . . Hauler Manifests 1 | . . . . 1 . . . . . . . . . . . . Zone Layout 14 | . 1 . . 2 2 2 1 . . 3 1 . 2 . . . Fabricator Hacks 4 | . . . . . 2 . . . . . . . . 2 . . Load Schematic 2 | . . . . . 1 . . . . . . . . 1 . . Build 2 | . . . . . 1 . . . . . . . . 1 . . Repair Station Hacks 27 | . . 3 3 4 9 4 . . . . . . . 4 . . Scan Component 16 | . . 2 2 2 5 3 . . . . . . . 2 . . Repair 11 | . . 1 1 2 4 1 . . . . . . . 2 . . Recycling Unit Hacks 8 | . . 8 . . . . . . . . . . . . . . Recycle Component 4 | . . 4 . . . . . . . . . . . . . . Process 4 | . . 4 . . . . . . . . . . . . . . Scanalyzer 2 | . . 2 . . . . . . . . . . . . . . Insert Component 1 | . . 1 . . . . . . . . . . . . . . Analyze 1 | . . 1 . . . . . . . . . . . . . . Garrison Access Hacks 5 | . . . . 1 2 . . . . 1 . . 1 . . . Seal Access 5 | . . . . 1 2 . . . . 1 . . 1 . . . Unauthorized Hacks . | . . . . . . . . . . . . . . . . . Terminals . | . . . . . . . . . . . . . . . . . Fabricators . | . . . . . . . . . . . . . . . . . Repair Stations . | . . . . . . . . . . . . . . . . . Recycling Units . | . . . . . . . . . . . . . . . . . Scanalyzers . | . . . . . . . . . . . . . . . . . Garrison Access . | . . . . . . . . . . . . . . . . . Data Cores Recovered 3 | . . . . 1 1 . . . . . 1 . . . . . Used 2 | . . . . 1 . . . . . . 1 . . . . . Hacking Detections 59 | . . 7 3 5 13 3 7 3 . 11 2 . 5 . . . Full Trace Events 37 | . . 5 3 3 7 3 3 2 . 8 1 . 2 . . . Feedback Events 1 | . . . . . 1 . . . . . . . . . . . Corruption 1 | . . . . . 1 . . . . . . . . . . . Feedback Blocked . | . . . . . . . . . . . . . . . . . Robot Schematics Acquired 2 | . . . . . . . . . . 2 . . . . . . Robots Built 2 | . . . . . . . . . . . . . . 2 . . Authchips . | . . . . . . . . . . . . . . . . . Time 67 | . . . . . . . . . . . . . . 67 . . Total Robot Build Rating 8 | . . . . . . . . . . . . . . 8 . . Part Schematics Acquired 5 | . . 1 . 1 1 . . . . . . . 2 . . . Parts Built 2 | . . . . . 2 . . . . . . . . . . . Authchips . | . . . . . . . . . . . . . . . . . Time 47 | . . . . . 47 . . . . . . . . . . . Total Part Build Rating 10 | . . . . . 10 . . . . . . . . . . . Parts Repaired 11 | . . 1 1 2 4 1 . . . . . . . 2 . . Time 356 | . . 16 38 83 99 26 . . . . . . . 94 . . Parts Recycled 4 | . . 4 . . . . . . . . . . . . . . Recycled Matter 155 | . . 155 . . . . . . . . . . . . . . Retrieved Matter . | . . . . . . . . . . . . . . . . . Retrieved Components . | . . . . . . . . . . . . . . . . . Parts Scanalyzed 1 | . . 1 . . . . . . . . . . . . . . Part Schematics Acquired 1 | . . 1 . . . . . . . . . . . . . . Parts Damaged . | . . . . . . . . . . . . . . . . . Bothacking | -11 -10 -9 -8 -8 -7 -6 -6 -6 -6 -6 -5 -5 -5 -4 -3 -3 ------------ Run | Jun Mat Mat Mat Sto Fac Fac Ext Cet Arc Hub Fac Was Fac Fac Res DSF Used RIF Installer . | . . . . . . . . . . . . . . . . . Robots Hacked . | . . . . . . . . . . . . . . . . . Non-combat . | . . . . . . . . . . . . . . . . . Combat . | . . . . . . . . . . . . . . . . . Robot Hacks Applied . | . . . . . . . . . . . . . . . . . Relay Couplers Released 3 | . . . . . . . . . . 3 . . . . . . Programmers 3 | . . . . . . . . . . 3 . . . . . . Fabnet Peak Effective % . | . . . . . . . . . . . . . . . . . Robots Rewired . | . . . . . . . . . . . . . . . . . Allies Hacked 2 | . . . . . . . . . . . . . . 2 . . Hacks Repelled . | . . . . . . . . . . . . . . . . . Allies | -11 -10 -9 -8 -8 -7 -6 -6 -6 -6 -6 -5 -5 -5 -4 -3 -3 -------- Run | Jun Mat Mat Mat Sto Fac Fac Ext Cet Arc Hub Fac Was Fac Fac Res DSF Total Allies 34 | . . . . . . . 10 4 . . . 18 . 2 . . Largest Group 18 | . . . . . . . 8 7 4 3 . 18 18 9 1 1 Highest-Rated Group 656 | . . . . . . . 356 442 308 283 . 656 656 341 23 23 Highest-Rated Ally 159 | . . . . . . . 159 159 96 96 . 50 50 50 23 23 Total Orders . | . . . . . . . . . . . . . . . . . Ally Attacks 407 | . . . . . . . 65 86 27 15 . . 171 43 . . Total Damage 12745 | . . . . . . . 1796 2636 1122 850 . . 4450 1891 . . Kills 77 | . . . . . . . 13 15 3 7 . . 29 10 . . Allies Corrupted 3 | . . . . . . . . . . 1 . . . 2 . . Allies Melted . | . . . . . . . . . . . . . . . . . Intel | -11 -10 -9 -8 -8 -7 -6 -6 -6 -6 -6 -5 -5 -5 -4 -3 -3 ------- Run | Jun Mat Mat Mat Sto Fac Fac Ext Cet Arc Hub Fac Was Fac Fac Res DSF Robot Analysis Total 1 | . . 1 . . . . . . . . . . . . . . Derelict Logs Recovered . | . . . . . . . . . . . . . . . . . Drone Launches . | . . . . . . . . . . . . . . . . . Drone Recoveries . | . . . . . . . . . . . . . . . . . Exploration | -11 -10 -9 -8 -8 -7 -6 -6 -6 -6 -6 -5 -5 -5 -4 -3 -3 ------------- Run | Jun Mat Mat Mat Sto Fac Fac Ext Cet Arc Hub Fac Was Fac Fac Res DSF Turns Passed 19632 | 68 356 1137 402 545 4909 1147 2174 665 237 3636 925 691 1310 1097 83 250 Spaces Moved 9099 | 52 149 665 139 289 2247 472 970 307 111 1659 473 312 651 498 46 59 Core 15 | 11 4 . . . . . . . . . . . . . . . Treads . | . . . . . . . . . . . . . . . . . Legs 9084 | 41 145 665 139 289 2247 472 970 307 111 1659 473 312 651 498 46 59 Wheels . | . . . . . . . . . . . . . . . . . Hover . | . . . . . . . . . . . . . . . . . Flight . | . . . . . . . . . . . . . . . . . Fastest Speed 50 | 50 120 120 115 115 115 187 190 190 190 176 176 180 180 180 179 113 Average Speed 176 | 105 198 120 117 115 181 189 190 190 190 185 181 189 180 180 179 158 Slowest Speed 500 | 120 500 260 190 115 195 190 190 190 190 260 380 320 180 180 179 190 Overloaded Moves . | . . . . . . . . . . . . . . . . . Propulsion Burnouts . | . . . . . . . . . . . . . . . . . Robots Hopped . | . . . . . . . . . . . . . . . . . Cave-ins Triggered 2 | . . . . . . . . . . 1 . . . . . 1 Exploration Rate (%) 44 | 4 22 64 16 46 46 12 85 88 83 91 9 96 25 12 1 63 Regions Visited 16 Branch Regions 5 Pre-discovered Areas . | . . . . . . . . . . . . . . . . . Known Exits Taken 14 | 1 1 1 1 1 1 1 1 1 1 1 . . 1 1 1 . Unknown Exits Taken . | . . . . . . . . . . . . . . . . . Scrap Searched . | . . . . . . . . . . . . . . . . . Spaces Dug 12 | . . . . . . . . . . . . . 11 1 . . Terrain Destroyed 457 | . 4 . . 1 16 . . 1 6 321 8 5 55 12 . 28 Melee . | . . . . . . . . . . . . . . . . . Projectile 133 | . . . . 1 1 . . 1 6 51 8 5 20 12 . 28 AOE 323 | . 4 . . . 15 . . . . 270 . . 34 . . . Terrain Rammed . | . . . . . . . . . . . . . . . . . Walls Destroyed . | . . . . . . . . . . . . . . . . . Machines Disabled . | . . . . . . . . . . . . . . . . . Actions | -11 -10 -9 -8 -8 -7 -6 -6 -6 -6 -6 -5 -5 -5 -4 -3 -3 --------- Run | Jun Mat Mat Mat Sto Fac Fac Ext Cet Arc Hub Fac Was Fac Fac Res DSF Total 11044 | 62 176 845 262 433 2665 597 1211 350 122 1895 506 364 731 643 47 135 Wait 828 | . 2 61 60 100 158 47 175 9 6 58 2 16 36 98 . . Move 9083 | 51 148 664 138 288 2246 471 969 306 110 1657 473 311 650 497 45 59 Hop . | . . . . . . . . . . . . . . . . . Pick Up 78 | 4 4 10 1 2 7 8 7 2 . 8 1 9 9 4 . 2 Fast Attach 43 | 7 . 2 1 2 11 1 . 3 . 2 7 . . 5 . 2 Attach 92 | . 1 3 4 . 16 4 1 4 . 24 5 4 2 5 2 17 Detach 11 | . . . 1 . . . . . . 4 1 1 1 3 . . Swap 86 | . 3 10 4 4 18 3 6 3 . 8 4 3 6 6 . 8 Drop 57 | . 1 6 2 3 11 . 3 7 . 4 2 2 5 5 . 6 Fire 706 | . 17 89 51 33 193 47 33 16 6 120 11 18 21 20 . 31 Melee . | . . . . . . . . . . . . . . . . . Ram . | . . . . . . . . . . . . . . . . . Kick 26 | . . . . 1 5 1 7 . . 9 . . 1 . . 2 Crush . | . . . . . . . . . . . . . . . . . Escape Stasis 34 | . . . . . . 15 10 . . 1 . . . . . 8 Rewire . | . . . . . . . . . . . . . . . . . Trap . | . . . . . . . . . . . . . . . . . Miscellaneous . | . . . . . . . . . . . . . . . . . Route ------- -11/Junkyard -10/Materials -9/Materials (discovered 2 exits: *Mat / *Min) -8/Materials (discovered 2 exits: *Sto x2) -8/Storage -7/Factory (discovered 3 exits: *Fac / *Low x2) -6/Factory (discovered 8 exits: Fac x4 / Low x2 / *Ext x2) -6/Extension (discovered 3 exits: *Fac x2 / *Cet) -6/Cetus (discovered 2 exits: *Fac / *Arc) -6/Archives (discovered 3 exits: *Fac / *Hub x2) -6/Hub_04(d) (discovered 4 exits: *Fac x4) -5/Factory -5/Waste -5/Factory (discovered 6 exits: *Fac x4 / *Upp x2) -4/Factory -3/Research -3/DSF History --------- Turn | Location | Event 8 | -11/Junkyard | Identified exit to Materials 8 | -11/Junkyard | Discovered exit to Materials (range 15) 69 | -11/Junkyard | Entered Materials 69 | -10/Materials | Evolved 1 slot: Power x1 308 | -10/Materials | Build established: Hacker-Mutant 363 | -10/Materials | Identified exit to Materials 363 | -10/Materials | Discovered exit to Materials (range 12) 425 | -10/Materials | Entered another Materials area 425 | -9/Materials | Evolved 2 slots: Propulsion x2 652 | -9/Materials | Identified exit to Mines 885 | -9/Materials | Repaired Imp. Ion Engine 1517 | -9/Materials | Identified exit to Materials 1517 | -9/Materials | Discovered exit to Materials (range 15) 1562 | -9/Materials | Entered another Materials area 1562 | -8/Materials | Evolved 2 slots: Utility x1, Weapon x1 1610 | -8/Materials | Repaired Carbon-fiber Leg 1778 | -8/Materials | Identified exit to Storage 1778 | -8/Materials | Discovered exit to Storage (range 8) 1857 | -8/Materials | Build established: Hacker-Gunner 1912 | -8/Materials | Destroyed 7 combat bots 1964 | -8/Materials | Entered Storage 2120 | -8/Storage | Repaired Cld. Ion Engine 2170 | -8/Storage | Repaired Hvy. Assault Rifle 2478 | -8/Storage | Identified exit to Factory 2478 | -8/Storage | Discovered exit to Factory (range 16) 2509 | -8/Storage | Entered Factory 2509 | -7/Factory | Evolved 2 slots: Utility x2 2965 | -7/Factory | Fabricated Coil Gun (x2) 3123 | -7/Factory | Garrison activated, responded to threat 3797 | -7/Factory | Cargo convoy interrupted 3999 | -7/Factory | Repaired Med. Matter Pod 6350 | -7/Factory | Identified exit to Lower Caves 6489 | -7/Factory | Destroyed 11 combat bots 6515 | -7/Factory | Lost 9 parts (2p3n3u1w) 7200 | -7/Factory | Identified exit to Factory 7200 | -7/Factory | Discovered exit to Factory (range 8) 7241 | -7/Factory | Lost 3 parts (2p1u) 7351 | -7/Factory | Repaired Prc. Assault Rifle 7371 | -7/Factory | Repaired Carbon-fiber Leg 7397 | -7/Factory | Repaired VSS Leg 7418 | -7/Factory | Entered another Factory area 7418 | -6/Factory | Evolved 2 slots: Weapon x2 7634 | -6/Factory | Identified exit to Lower Caves 7634 | -6/Factory | Identified exit to Extension 7649 | -6/Factory | Build established: Scavenger-Gunner 7711 | -6/Factory | Garrison activated, responded to threat 7825 | -6/Factory | Identified exit to Factory 7825 | -6/Factory | Spotted B-75 Beast 8033 | -6/Factory | Repaired Hcp. Storage Unit 8126 | -6/Factory | Garrison activated, responded to threat 8565 | -6/Factory | Entered Extension 8878 | -6/Extension | Rescued A7 8961 | -6/Extension | Rescued a captive Derelict 9090 | -6/Extension | Rescued a captive Derelict 9091 | -6/Extension | Rescued a captive Derelict 9132 | -6/Extension | Spotted B-75 Beast 9145 | -6/Extension | Spotted B-75 Beast 9168 | -6/Extension | Allies destroyed B-75 Beast 9174 | -6/Extension | Destroyed B-75 Beast 9224 | -6/Extension | Discovered exit to Factory (range 3) 9340 | -6/Extension | Disrupted transfer network 9694 | -6/Extension | Discovered exit to Factory (range 16) 9694 | -6/Extension | Identified exit to Cetus 9694 | -6/Extension | Discovered exit to Cetus (range 16) 9793 | -6/Extension | Rescued a captive Derelict 9967 | -6/Extension | Rescued a captive Derelict 10063 | -6/Extension | Rescued a captive Derelict 10064 | -6/Extension | Rescued a captive Derelict 10123 | -6/Extension | Rescued a captive Derelict 10123 | -6/Extension | Rescued a captive Derelict 10739 | -6/Extension | Entered Cetus 10739 | -6/Cetus | Accompanied by 7 allies (A7) 10744 | -6/Cetus | Acquired a Cetus Manufacturing Module code from A7 10768 | -6/Cetus | Spotted Cetus Guard 10769 | -6/Cetus | Spotted Cetus Guard 10773 | -6/Cetus | Spotted Cetus Guard 10775 | -6/Cetus | Spotted Cetus Guard 10790 | -6/Cetus | Allies destroyed Cetus Guard 10796 | -6/Cetus | Extracted ID and sensor layout for unrecognized location from A7's data core 10802 | -6/Cetus | Allies destroyed Cetus Guard 10937 | -6/Cetus | Started Cetus Manufacturing Module 10962 | -6/Cetus | Manufactured an Enhanced Grunt 10987 | -6/Cetus | Manufactured an Enhanced Grunt 11012 | -6/Cetus | Manufactured an Enhanced Grunt 11037 | -6/Cetus | Manufactured an Enhanced Grunt 11043 | -6/Cetus | Cetus Manufacturing Module disabled 11165 | -6/Cetus | Identified exit to Archives 11165 | -6/Cetus | Discovered exit to Archives (range 16) 11198 | -6/Cetus | Spotted Cetus Guard 11199 | -6/Cetus | Spotted Cetus Guard 11202 | -6/Cetus | Spotted Cetus Guard 11204 | -6/Cetus | Spotted Cetus Guard 11210 | -6/Cetus | Destroyed Cetus Guard 11216 | -6/Cetus | Destroyed Cetus Guard 11217 | -6/Cetus | Allies destroyed Cetus Guard 11221 | -6/Cetus | Discovered exit to Factory (range 16) 11221 | -6/Cetus | Allies destroyed Cetus Guard 11233 | -6/Cetus | Met Revision 17 11404 | -6/Cetus | Entered Archives 11404 | -6/Archives | Accompanied by 4 allies 11519 | -6/Archives | Unable to access archive contents 11526 | -6/Archives | Identified exit to Hub_04(d) 11526 | -6/Archives | Discovered exit to Hub_04(d) (range 16) 11538 | -6/Archives | Unable to access archive contents 11542 | -6/Archives | Discovered exit to Hub_04(d) (range 16) 11557 | -6/Archives | Unable to access archive contents 11561 | -6/Archives | Discovered exit to Factory (range 16) 11576 | -6/Archives | Unable to access archive contents 11641 | -6/Archives | Entered Hub_04(d) 11641 | -6/Hub_04(d) | Accompanied by 3 allies 11729 | -6/Hub_04(d) | Spotted B-75 Beast 11764 | -6/Hub_04(d) | Destroyed B-75 Beast 11772 | -6/Hub_04(d) | Found Prototype Device 11773 | -6/Hub_04(d) | Identified Exp. Thermal Shield 12387 | -6/Hub_04(d) | Discovered exit to Factory (range 4) 13382 | -6/Hub_04(d) | Discovered exit to Factory (range 12) 13737 | -6/Hub_04(d) | Network Hub disabled 13798 | -6/Hub_04(d) | Network Hub disabled 13803 | -6/Hub_04(d) | Spotted Lightning 13806 | -6/Hub_04(d) | Spotted Lightning 13811 | -6/Hub_04(d) | Destroyed Lightning 13811 | -6/Hub_04(d) | Spotted Lightning 13839 | -6/Hub_04(d) | Discovered exit to Factory (range 14) 13860 | -6/Hub_04(d) | Lost 3 parts (1n1u1w) 13885 | -6/Hub_04(d) | Destroyed Lightning 13896 | -6/Hub_04(d) | Destroyed Lightning 13909 | -6/Hub_04(d) | Lost 3 parts (1p1n1w) 13975 | -6/Hub_04(d) | Found Prototype Device 13975 | -6/Hub_04(d) | Identified Exp. Phase Shifter 14051 | -6/Hub_04(d) | Crushed by falling debris 14052 | -6/Hub_04(d) | System corruption reached 10% 14082 | -6/Hub_04(d) | Lost 3 parts (1p1n1w) 14380 | -6/Hub_04(d) | Discovered exit to Factory (range 13) 14672 | -6/Hub_04(d) | Build established: Hacker-Gunner 14776 | -6/Hub_04(d) | Garrison activated, responded to threat 14893 | -6/Hub_04(d) | Core integrity fell below 50% 15277 | -6/Hub_04(d) | Entered Factory 15277 | -5/Factory | Evolved 2 slots: Power x1, Utility x1 15332 | -5/Factory | Build established: Scavenger-Gunner 16202 | -5/Factory | Sucked down chute 16202 | -5/Factory | Entered Waste 16217 | -5/Waste | Spotted C-40 Crusher 16233 | -5/Waste | Destroyed C-40 Crusher 16252 | -5/Waste | Found Damper Plating 16266 | -5/Waste | Spotted C-40 Crusher 16271 | -5/Waste | Destroyed C-40 Crusher 16282 | -5/Waste | Destroyed C-40 Crusher 16294 | -5/Waste | Destroyed C-40 Crusher 16294 | -5/Waste | Spotted C-40 Crusher 16309 | -5/Waste | Crushed by Compactor (1 part destroyed, 2 dropped) 16312 | -5/Waste | Destroyed C-40 Crusher 16339 | -5/Waste | Destroyed C-40 Crusher 16580 | -5/Waste | Warlord forces began an assault 16792 | -5/Waste | Identified exit to Factory 16792 | -5/Waste | Discovered exit to Factory (range 16) 16817 | -5/Waste | Build established: Hacker-Gunner 16893 | -5/Waste | Entered Factory 16893 | -5/Factory | Accompanied by 18 allies 17342 | -5/Factory | Spotted B-75 Beast 17354 | -5/Factory | Allies destroyed B-75 Beast 17445 | -5/Factory | Identified exit to Upper Caves 17445 | -5/Factory | Discovered exit to Upper Caves (range 9) 17704 | -5/Factory | Identified exit to Factory 17749 | -5/Factory | Discovered exit to Upper Caves (range 7) 17814 | -5/Factory | Garrison activated, responded to threat 18156 | -5/Factory | Build established: Scavenger-Gunner 18203 | -5/Factory | Entered another Factory area 18203 | -4/Factory | Accompanied by 8 allies 18203 | -4/Factory | Evolved 2 slots: Utility x2 18614 | -4/Factory | Fabricated P-60 Hacker? 18646 | -4/Factory | Repaired Lgt. Angular Momentum Engine 18691 | -4/Factory | Repaired Imp. Deuterium Engine 19271 | -4/Factory | Identified exit to Research 19271 | -4/Factory | Discovered exit to Research (range 12) 19300 | -4/Factory | Entered Research 19300 | -3/Research | Accompanied by 1 ally 19300 | -3/Research | Evolved 2 slots: Propulsion x2 19381 | -3/Research | Identified exit to DSF 19383 | -3/Research | Entered DSF 19383 | -3/DSF | Accompanied by 1 ally 19393 | -3/DSF | Assembled infested the area 19412 | -3/DSF | Additional patrols routed to DSF 19481 | -3/DSF | Destroyed 8 combat bots 19594 | -3/DSF | Lost 12 parts (4p2u6w) 19599 | -3/DSF | Crushed by falling debris 19633 | -3/DSF | Self-destructed Last Messages --------------- 19626_ HV Slug penetrates as-52241. 19626_ as-52241 suffers critical hit (Destroy). 19626_ Destroyed Asb. Hover System. 19626_ as-52241 knocked back. 19626_ as-52241 suffers critical hit (Destroy). 19626_ Destroyed Asb. Gauss Rifle. 19626_ as-52241 knocked back. 19627_ The unstable cave ceiling collapses. 19627_ Lgt. Angular Momentum Engine destroyed. 19628_ The unstable cave ceiling collapses. 19629_ as-93331 suffers critical hit (Destroy). 19629_ as-93331 destroyed. 19629_ as-16892 destroyed. 19629_ HV Slug penetrates Wall. 19629_ Penetrated by Slug. 19630_ Acquired 12 matter. 19632_ Bore Cannon destroyed. 19632_ Critical hit (Burn: +80). Assembled squeeze their way out of the twisted tunnel. 19633_ Slug penetrates Wall. Map ----- +----------------------------------------------------+ | | | | | | | | | | | ???????????????????????????????????????????? | | ???????????????????????????????????????????? | | ???????????????????????????????????????????? | | ???????????????????????????????????????????? | | ???????????????????????????????????? ??????? | | ???????????????????????#######?###? ??????? | | ????????????????????#### # ## ? "#?????? | | ?????????????########!![[[== # # #??????? | | ????????????##==# #!![[[== #""????? | | ????????????? % %?????? | | ??????????????? %%! ??????? | | ????????????????# ## #!!! !????????? | | ????????????????# ### % # !!!#??????????? | | ????????????????# # %% ## ###?????????? | | ???????????????## ##????????? | | ???????????????#a / #????????? | | ???????????????#aa %# ## # ##?????????? | | ???????????????#aa# #= ####????????? | | ???????????????#aaa#%a= #????????? | | ???????????????# aaaa== != ##????????? | | ???????????????####@## !%%= #####??##??????? | | ????????????# ?# aa#!%[*= #]]]#? #??????? | | ???????????## #! % %%= #]]]# ## ???? | | ????????? a % *??? | | ??????#!! a% % !%" *??? | | ??????#!! %% *??? | | ??????# ## #===% % % !!!#]]]## ???? | | ??????? ## #=== #!!!#?]]#??????? | | ??????### ####?#; ## #####???#??????? | | ???????? ????# ?# ==#??????????????? | | ???????? ???? #?# ==# ?????????????? | | ???????? ???? #??#! == #????????????? | | ???????## ##??# ???# #%* # ###????????????? | | ???????# |???##???# #??????????????? | | ???????# =????????# #??????????????? | | ????????# #?######## #??????????????? | | ??????### ### # ### ###??!#??????????? | | ????###"" ## |# ### ###!!!#!!##??????? | | ????""""" ^ ???? | | ??????#"" ???? | | ??????#"""""##%!# #]!!!!]]# #!!##??????? | | ??????#"""""#########!!!!!]]#?###??????????? | | ??????####"##???????#########??????????????? | | ?????????#"#???????????????????????????????? | | ?????????""#???????????????????????????????? | +----------------------------------------------------+ Best States ------------- Heat Dissipation 66 Coolant Potential 100 Energy Generation 50 Energy Capacity 560 Matter Stores 1000 Matter Capacity 1000 Sight Range 16 Terrain Scan Density 10 Power Amplification 20 Resistance: KI 35 Resistance: TH 65 Resistance: EX 35 Resistance: EM 35 Resistance: I 35 Resistance: S 35 Resistance: P 35 Propulsion Shielding 33 Phase Shifting 20 Evasion (%) 60 Targeting Accuracy 20 Armor Integrity Analysis 30 Matter Filtering 30 Offensive Hacking 20 Defensive Hacking 14 Item Schematics ----------------- Autogun | -9/Materials | Scanalyzed Coil Gun | -8/Storage | Hacked Angular Momentum Engine | -7/Factory | Hacked Imp. Linear Gravjet | -5/Factory | Hacked Linear Gravjet | -5/Factory | Hacked Robot Schematics ------------------ P-60 Hacker | -6/Hub_04(d) | Hacked K-01 Serf | -6/Hub_04(d) | Hacked Fabricated ------------ Coil Gun | x2 | -7/Factory P-60 Hacker | x2 | -4/Factory Alien Tech Used ----------------- None Achievements -------------- None Challenges ------------ None Game ------ Seed OmegaShadingDetector Manual? 0 Play Time 02:23:51 Cumulative 1306.8 hours Start 2023.03.25 @ 08:50:11 End 2023.03.25 @ 20:44:46 Sessions 5 Manual Loads 0 Difficulty Explorer Special Mode None Game No. 832 Rogue 62 Adventurer 0 Explorer 770 Win Type - Total 6 Types 6/0/0/0/0/0/0/0/0 Lore% 69 Gallery% 80 Achievement% 61 Wizard Run 0 Options --------- ASCII 0 Keyboard 0 Movement Mouse Keybinds 0 Fullscreen 1 Font 36/Smallcaps Map View 76x50 Tactical HUD 1 Map Filters NONE Filters NONE Steam 1 RUN: 358d3e11-2b8e-4ae7-afcb-20566c342b6a